bitfinex/quotes_SOLUSD_20230903
["timestamp","ask_amount","ask_price","bid_price","bid_amount"]
[1693773681705,55.0,19.515,19.499,55.0]
[1693773681905,55.0,19.515,19.5,4.94461036]
[1693773683411,62.993,19.515,19.5,4.94461036]
[1693773685313,55.0,19.515,19.5,4.94461036]
[1693773686914,62.993,19.515,19.5,4.94461036]
[1693773688414,55.0,19.515,19.5,4.94461036]
[1693773692125,37.53,19.51,19.498,4.94461036]
[1693773692425,37.53,19.51,19.496,24.94461036]
[1693773692919,37.53,19.51,19.498,4.94461036]
[1693773693120,37.53,19.51,19.496,4.94461036]
[1693773693511,90.8395,19.509,19.498,4.94461036]
[1693773695710,90.8395,19.509,19.496,4.94461036]
[1693773706947,90.8395,19.509,19.497,55.0]
[1693773707246,90.8395,19.509,19.498,4.94461036]
[1693773707448,90.8395,19.509,19.5,4.94461036]
[1693773708848,90.8395,19.509,19.501,55.0]
[1693773709045,90.8395,19.509,19.502,4.94461036]
[1693773709239,7.993,19.516,19.503,55.0]
[1693773709440,7.993,19.516,19.504,4.94461036]
[1693773709641,52.61932237,19.52,19.504,4.94461036]
[1693773710140,99.8853,19.519,19.504,4.94461036]
[1693773710639,7.993,19.517,19.504,4.94461036]
[1693773714339,99.8853,19.519,19.504,4.94461036]
[1693773714553,55.0,19.516,19.499,4.94461036]
[1693773714752,55.0,19.516,19.5,55.0]
[1693773714958,55.0,19.516,19.501,4.94461036]
[1693773715251,55.0,19.516,19.502,55.0]
[1693773715458,55.0,19.516,19.503,4.94461036]
[1693773715751,55.0,19.517,19.503,4.94461036]
[1693773722360,55.0,19.517,19.499,4.94461036]
[1693773722659,55.0,19.517,19.5,55.0]
[1693773722861,55.0,19.517,19.501,4.94461036]
[1693773723055,62.993,19.517,19.501,4.94461036]
[1693773723455,62.993,19.517,19.502,55.0]
[1693773723657,62.993,19.517,19.503,4.94461036]
[1693773725964,7.993,19.517,19.504,55.0]
[1693773726157,7.993,19.517,19.505,4.94461036]
[1693773727663,55.0,19.516,19.499,4.94461036]
[1693773727860,62.993,19.516,19.5,55.0]
[1693773728065,62.993,19.516,19.501,4.94461036]
[1693773731055,7.993,19.516,19.501,4.94461036]
[1693773731255,7.992,19.518,19.502,55.0]
[1693773731464,7.992,19.518,19.503,4.94461036]
[1693773731664,7.992,19.518,19.504,55.0]
[1693773731865,7.992,19.518,19.505,4.94461036]
[1693773735771,33.814,19.518,19.505,4.94461036]
[1693773735971,55.0,19.517,19.499,4.94461036]
[1693773736173,7.993,19.515,19.5,55.0]
[1693773736369,7.993,19.515,19.501,4.94461036]
[1693773736753,55.0,19.517,19.501,4.94461036]
[1693773736959,7.993,19.516,19.501,4.94461036]
[1693773737170,55.0,19.515,19.501,4.94461036]
[1693773741075,62.993,19.515,19.501,4.94461036]
[1693773742966,55.0,19.515,19.501,4.94461036]
[1693773745179,62.993,19.515,19.501,4.94461036]
[1693773749286,78.65333862,19.515,19.501,4.94461036]
[1693773753583,15.66033862,19.515,19.501,4.94461036]
[1693773753883,125.7073,19.519,19.501,4.94461036]
[1693773753884,99.8853,19.519,19.502,55.0]
[1693773754184,55.0,19.518,19.502,55.0]
[1693773754489,55.0,19.518,19.503,4.94461036]
[1693773754673,62.992,19.518,19.504,55.0]
[1693773754872,62.992,19.518,19.505,4.94461036]
[1693773755984,7.992,19.518,19.505,4.94461036]
[1693773756184,7.992,19.518,19.506,55.0]
[1693773756388,7.992,19.518,19.507,4.94461036]
[1693773756684,7.992,19.518,19.506,55.0]
[1693773757189,7.992,19.518,19.499,4.94461036]
[1693773757375,7.992,19.518,19.5,55.0]
[1693773757577,7.992,19.518,19.501,4.94461036]
[1693773757887,7.992,19.518,19.502,55.0]
[1693773758089,95.7075,19.517,19.503,4.94461036]
[1693773758281,7.993,19.517,19.504,55.0]
[1693773758483,7.993,19.517,19.505,4.94461036]
[1693773759394,95.7075,19.519,19.505,4.94461036]
[1693773759991,95.7075,19.519,19.506,55.0]
[1693773761091,95.7075,19.519,19.507,2.62113966]
[1693773763188,103.6995,19.519,19.507,2.62113966]
[1693773763777,103.6995,19.519,19.506,55.0]
[1693773766286,95.7075,19.519,19.506,55.0]
[1693773773198,95.7075,19.519,19.507,2.52645658]
[1693773773998,103.6995,19.519,19.507,2.52645658]
[1693773774203,103.6995,19.519,19.502,4.94461036]
[1693773774502,103.6995,19.519,19.503,55.0]
[1693773774703,103.6995,19.519,19.504,4.94461036]
[1693773774903,103.6995,19.519,19.505,55.0]
[1693773775094,103.6995,19.519,19.506,4.94461036]
[1693773795409,55.0,19.518,19.506,4.94461036]
[1693773795615,62.992,19.518,19.5,4.94461036]
[1693773797018,62.992,19.518,19.501,55.0]
[1693773797219,62.992,19.518,19.502,4.94461036]
[1693773797528,62.992,19.518,19.503,55.0]
[1693773797707,62.992,19.518,19.504,4.94461036]
[1693773818258,55.0,19.518,19.504,4.94461036]
[1693773819762,62.992,19.518,19.504,4.94461036]
[1693773821258,55.0,19.518,19.504,4.94461036]
[1693773828965,62.992,19.518,19.504,4.94461036]
[1693773831474,55.0,19.518,19.504,4.94461036]
[1693773847690,62.992,19.518,19.504,4.94461036]
[1693773848692,55.0,19.518,19.504,4.94461036]
[1693773853499,62.992,19.518,19.504,4.94461036]
[1693773858422,62.992,19.518,19.499,4.94461036]
[1693773859706,62.992,19.518,19.5,55.0]
[1693773859906,62.992,19.518,19.501,4.94461036]
[1693773867315,95.45561826,19.518,19.501,4.94461036]
[1693773875125,103.44761826,19.518,19.501,4.94461036]
[1693773875325,37.53,19.51,19.499,4.94461036]
[1693773875626,37.53,19.51,19.497,24.94461036]
[1693773876127,7.993,19.517,19.497,4.94461036]
[1693773876319,55.0,19.516,19.497,4.94461036]
[1693773876520,7.993,19.517,19.497,45.76554436]
[1693773876724,55.0,19.516,19.498,55.0]
[1693773876918,62.993,19.516,19.499,4.94461036]
[1693773877111,7.993,19.516,19.5,55.0]
[1693773877315,55.0,19.515,19.501,4.94461036]
[1693773878927,55.0,19.516,19.501,4.94461036]
[1693773879728,62.993,19.517,19.501,4.94461036]
[1693773880628,62.993,19.517,19.498,4.94461036]
[1693773880830,62.993,19.517,19.499,55.0]
[1693773881019,62.993,19.517,19.5,4.94461036]
[1693773893934,37.53,19.51,19.5,4.94461036]
[1693773898543,94.745,19.509,19.5,4.94461036]
[1693773900936,52.61932237,19.52,19.502,4.94461036]
[1693773901128,52.61932237,19.52,19.504,4.94461036]
[1693773901328,90.3296,19.519,19.502,4.94461036]
[1693773901644,90.3296,19.519,19.504,4.94461036]
[1693773901941,90.3296,19.519,19.505,55.0]
[1693773902141,90.3296,19.519,19.506,4.94461036]
[1693773902344,90.3296,19.519,19.508,4.94461036]
[1693773907148,55.0,19.518,19.502,4.94461036]
[1693773907349,7.993,19.517,19.502,4.94461036]
[1693773907552,55.0,19.516,19.502,4.94461036]
[1693773907753,55.0,19.518,19.502,4.94461036]
[1693773910452,98.3216,19.519,19.502,4.94461036]
[1693773910651,90.3296,19.519,19.503,55.0]
[1693773910945,90.3296,19.519,19.504,4.94461036]
[1693773911140,90.3296,19.519,19.506,4.94461036]
[1693773911335,90.3296,19.519,19.504,4.94461036]
[1693773911531,90.3296,19.519,19.506,4.94461036]
[1693773911736,7.992,19.518,19.504,4.94461036]
[1693773912248,91.3285,19.517,19.504,4.94461036]
[1693773919661,55.0,19.516,19.502,4.94461036]
[1693773924653,91.3285,19.517,19.502,4.94461036]
[1693773924869,91.3285,19.517,19.503,55.0]
[1693773925159,91.3285,19.517,19.504,4.94461036]
[1693773932867,91.3285,19.517,19.501,40.62801436]
[1693773932868,55.0,19.516,19.502,4.94461036]
[1693773933051,55.0,19.516,19.501,4.94461036]
[1693773933251,55.0,19.516,19.502,55.0]
[1693773933552,55.0,19.516,19.503,4.94461036]
[1693773943472,91.3285,19.517,19.503,4.94461036]
[1693773943973,55.0,19.516,19.503,4.94461036]
[1693773946273,91.3285,19.517,19.503,4.94461036]
[1693773946478,91.3285,19.517,19.504,55.0]
[1693773946672,91.3285,19.517,19.505,4.94461036]
[1693773948369,509.42181635,19.54,19.51,37.53]
[1693773948575,37.53,19.54,19.52,37.53]
[1693773948776,77.72702411,19.54,19.521,55.0]
[1693773948982,37.53,19.54,19.521,55.0]
[1693773949170,93.6325,19.539,19.522,161.90454186]
[1693773949363,93.6325,19.539,19.523,55.0]
[1693773949570,93.6325,19.539,19.524,388.5411335]
[1693773949870,37.53,19.55,19.524,388.5411335]
[1693773949871,37.53,19.55,19.53,37.53]
[1693773950180,37.53,19.55,19.53,264.16659164]
[1693773950373,37.53,19.55,19.531,202.70667695]
[1693773950575,37.53,19.55,19.531,421.21164219]
[1693773951376,55.0,19.549,19.531,421.21164219]
[1693773951582,37.53,19.55,19.531,421.21164219]
[1693773952179,37.53,19.55,19.532,136.25282833]
[1693773952372,37.53,19.55,19.533,284.95881386]
[1693773952573,37.53,19.55,19.534,136.25282833]
[1693773952775,37.53,19.55,19.535,304.95881386]
[1693773952977,51.25,19.56,19.535,304.95881386]
[1693773952978,37.53,19.56,19.54,37.53]
[1693773953177,37.53,19.56,19.541,229.95881386]
[1693773953486,37.53,19.56,19.542,55.0]
[1693773953680,37.53,19.56,19.541,206.83829857]
[1693773955185,37.53,19.56,19.535,20.0]
[1693773955373,55.0,19.559,19.536,173.25282833]
[1693773955574,55.0,19.559,19.537,31.10013224]
[1693773955874,55.0,19.559,19.538,66.0995641]
[1693773956087,55.0,19.559,19.539,11.09899603]
[1693773956591,94.0637,19.558,19.539,11.09899603]
[1693773956991,94.0637,19.558,19.54,92.53]
[1693773957189,37.53,19.56,19.541,11.09786006]
[1693773957390,37.53,19.56,19.542,55.0]
[1693773957586,37.53,19.56,19.543,11.09672432]
[1693773957980,90.7551,19.559,19.543,11.09672432]
[1693773958186,55.0,19.558,19.543,11.09672432]
[1693773958989,55.0,19.558,19.539,282.12363047]
[1693773959194,55.0,19.558,19.54,55.0]
[1693773959396,55.0,19.559,19.54,55.0]
[1693773960776,37.41,19.56,19.54,55.0]
[1693773962093,55.0,19.559,19.54,55.0]
[1693773962996,62.976,19.559,19.53,48.51411078]
[1693773963294,62.976,19.559,19.531,20.0]
[1693773963501,62.976,19.559,19.531,45.65171353]
[1693773964479,62.976,19.559,19.531,110.66586024]
[1693773964793,62.976,19.559,19.532,65.01414671]
[1693773965001,62.976,19.559,19.533,75.0]
[1693773965291,62.976,19.559,19.533,100.65171353]
[1693773970081,62.976,19.559,19.533,165.66586024]
[1693773973499,62.976,19.559,19.533,65.01414671]
[1693773973703,37.41,19.55,19.53,59.61822178]
[1693773973896,62.98,19.549,19.53,59.61822178]
[1693773974094,55.0,19.549,19.53,59.61822178]
[1693773974399,95.7455,19.548,19.53,59.61822178]
[1693773974602,55.0,19.547,19.53,59.61822178]
[1693773974901,55.0,19.547,19.531,55.0]
[1693773975094,62.98,19.547,19.531,55.0]
[1693773977287,62.98,19.547,19.53,59.61822178]
[1693773977599,62.98,19.547,19.53,11.10411078]
[1693773987294,62.98,19.547,19.522,178.46995111]
[1693773987603,62.98,19.547,19.523,100.65171353]
[1693773988192,62.98,19.547,19.523,20.0]
[1693773988393,62.98,19.547,19.523,45.65171353]
[1693773988594,62.98,19.547,19.524,25.65171353]
[1693773988891,62.98,19.547,19.525,20.0]
[1693773991299,62.98,19.547,19.525,45.65171353]
[1693774005804,26.74154791,19.546,19.525,45.65171353]
[1693774006006,7.983,19.542,19.525,45.65171353]
[1693774006208,55.0,19.541,19.525,45.65171353]
[1693774007510,92.5522,19.54,19.525,45.65171353]
[1693774007706,55.0,19.539,19.525,45.65171353]
[1693774034942,55.0,19.539,19.525,45.65171353]
[1693774088203,55.0,19.539,19.525,20.0]
[1693774088390,55.0,19.539,19.526,20.0]
[1693774088590,55.0,19.539,19.524,20.0]
[1693774091301,55.0,19.539,19.524,45.65171353]
[1693774098708,92.5522,19.54,19.525,25.65171353]
[1693774098914,52.89418031,19.55,19.53,37.47]
[1693774099206,115.8785,19.549,19.53,150.02053744]
[1693774099397,115.8785,19.549,19.531,108.46480446]
[1693774099596,20.0,19.549,19.531,167.55053744]
[1693774099796,20.0,19.549,19.531,193.20225097]
[1693774101395,55.0,19.548,19.531,193.20225097]
[1693774111220,55.0,19.548,19.531,208.36661348]
[1693774112521,55.0,19.548,19.531,250.15258377]
[1693774117514,55.0,19.549,19.531,250.15258377]
[1693774118220,62.98,19.549,19.531,250.15258377]
[1693774119220,55.0,19.549,19.531,250.15258377]
[1693774122219,55.0,19.55,19.531,250.15258377]
[1693774123223,7.979,19.551,19.531,250.15258377]
[1693774123526,20.0,19.55,19.531,250.15258377]
[1693774124531,55.0,19.549,19.531,250.15258377]
[1693774139237,15.05990783,19.554,19.531,250.15258377]
[1693774139441,90.3258,19.559,19.54,37.47]
[1693774139641,98.3018,19.559,19.541,55.0]
[1693774139853,7.976,19.558,19.541,55.0]
[1693774140247,52.71590163,19.56,19.54,37.47]
[1693774140530,7.976,19.558,19.54,37.47]
[1693774140929,7.977,19.555,19.54,37.47]
[1693774141141,55.0,19.554,19.54,37.47]
[1693774142937,55.0,19.555,19.54,37.47]
[1693774144146,62.977,19.555,19.54,37.47]
[1693774154354,90.1133,19.556,19.54,37.47]
[1693774154558,98.0903,19.556,19.54,37.47]
[1693774155768,55.0,19.555,19.54,37.47]
[1693774155954,7.977,19.554,19.54,37.47]
[1693774156155,55.0,19.553,19.54,37.47]
[1693774162362,55.0,19.554,19.54,37.47]
[1693774168077,7.978,19.554,19.54,37.47]
[1693774168277,55.0,19.553,19.54,37.47]
[1693774170482,55.0,19.554,19.54,37.47]
[1693774172671,7.977,19.554,19.54,37.47]
[1693774172972,55.0,19.553,19.54,37.47]
[1693774173583,62.978,19.553,19.54,37.47]
[1693774173784,62.978,19.553,19.535,40.00819251]
[1693774173976,62.978,19.553,19.536,75.0]
[1693774174780,55.0,19.553,19.536,75.0]
[1693774175367,62.978,19.553,19.536,75.0]
[1693774177780,62.978,19.553,19.536,20.0]
[1693774177987,62.978,19.553,19.535,20.0]
[1693774185197,55.0,19.553,19.535,20.0]
[1693774200509,90.1133,19.556,19.535,20.0]
[1693774200813,90.1133,19.556,19.54,37.47]
[1693774201009,90.1133,19.556,19.541,55.0]
[1693774201211,7.976,19.559,19.541,55.0]
[1693774201505,96.2646,19.555,19.54,37.47]
[1693774201712,104.2416,19.555,19.536,142.97613986]
[1693774202020,55.0,19.554,19.537,20.0]
[1693774202222,62.977,19.554,19.537,20.0]
[1693774202404,62.977,19.554,19.533,20.0]
[1693774202606,55.0,19.554,19.534,25.65171353]
[1693774202922,55.0,19.554,19.535,20.0]
[1693774203795,55.0,19.554,19.536,55.0]
[1693774203997,55.0,19.554,19.537,20.0]
[1693774204219,62.977,19.554,19.538,55.0]
[1693774205230,55.0,19.554,19.538,55.0]
[1693774206204,62.978,19.554,19.537,20.0]
[1693774206404,62.978,19.554,19.535,25.65171353]
[1693774206405,62.978,19.554,19.536,20.0]
[1693774206907,55.0,19.554,19.536,20.0]
[1693774210417,55.0,19.554,19.537,55.0]
[1693774210814,62.978,19.554,19.537,55.0]
[1693774211318,62.978,19.554,19.536,20.0]
[1693774213316,55.0,19.554,19.536,20.0]
[1693774213697,62.977,19.554,19.536,20.0]
[1693774219215,96.2646,19.555,19.54,37.47]
[1693774219413,96.2646,19.555,19.541,55.0]
[1693774222429,37.47,19.56,19.541,55.0]
[1693774222612,147.6791,19.559,19.541,55.0]
[1693774224219,155.6551,19.559,19.541,55.0]
[1693774226417,147.6791,19.559,19.541,55.0]
[1693774227631,155.6541,19.559,19.541,55.0]
[1693774227830,147.6791,19.559,19.541,55.0]
[1693774228415,37.47,19.57,19.55,37.47]
[1693774228618,91.7584,19.567,19.551,122.5470264]
[1693774228830,91.7584,19.567,19.552,20.0]
[1693774229032,91.7584,19.567,19.553,55.0]
[1693774229219,91.7584,19.567,19.554,20.0]
[1693774229418,7.969,19.574,19.555,55.0]
[1693774229629,91.7584,19.572,19.556,20.0]
[1693774230031,7.969,19.574,19.556,20.0]
[1693774230032,7.97,19.573,19.556,20.0]
[1693774230234,37.47,19.57,19.556,20.0]
[1693774231617,55.0,19.569,19.556,20.0]
[1693774232624,55.0,19.569,19.552,20.0]
[1693774232825,55.0,19.569,19.553,55.0]
[1693774233044,55.0,19.569,19.554,20.0]
[1693774233339,55.0,19.569,19.555,55.0]
[1693774233732,55.0,19.569,19.556,20.0]
[1693774234640,37.47,19.57,19.556,20.0]
[1693774234834,55.0,19.569,19.556,20.0]
[1693774240740,55.0,19.569,19.552,20.0]
[1693774240939,55.0,19.569,19.553,55.0]
[1693774241140,55.0,19.569,19.554,20.0]
[1693774242735,55.0,19.569,19.555,55.0]
[1693774243039,55.0,19.569,19.556,20.0]
[1693774249545,37.47,19.57,19.556,20.0]
[1693774249740,91.7584,19.571,19.56,37.47]
[1693774249939,401.4,19.575,19.56,37.47]
[1693774250158,37.47,19.58,19.56,37.47]
[1693774250159,37.47,19.58,19.561,55.0]
[1693774250342,37.47,19.58,19.562,20.0]
[1693774250664,37.47,19.58,19.563,55.0]
[1693774250843,37.47,19.58,19.564,20.0]
[1693774251243,98.1581,19.581,19.564,20.0]
[1693774251470,98.1581,19.581,19.57,37.47]
[1693774252139,97.39003953,19.59,19.57,37.47]
[1693774252345,98.9185,19.587,19.571,55.0]
[1693774252854,37.47,19.59,19.571,55.0]
[1693774253060,98.9185,19.586,19.571,55.0]
[1693774253445,401.4,19.592,19.58,37.47]
[1693774253746,401.4,19.602,19.58,37.47]
[1693774253946,37.47,19.61,19.58,37.47]
[1693774253947,7.958,19.603,19.581,75.0]
[1693774254140,26.66192227,19.605,19.581,75.0]
[1693774254341,92.9865,19.606,19.59,37.47]
[1693774254652,37.47,19.6,19.582,66.2470264]
[1693774254951,37.47,19.6,19.583,75.0]
[1693774255349,92.9865,19.606,19.583,75.0]
[1693774255743,92.9865,19.606,19.584,25.65171353]
[1693774255945,92.9865,19.606,19.59,37.47]
[1693774256162,91.9865,19.606,19.591,55.0]
[1693774256456,637.27,19.61,19.591,55.0]
[1693774257961,637.01,19.61,19.592,0.99999011]
[1693774258144,636.01,19.61,19.591,55.0]
[1693774258558,636.01,19.61,19.592,55.0]
[1693774258860,636.01,19.61,19.593,55.0]
[1693774260365,55.0,19.609,19.585,11.81135]
[1693774260565,55.0,19.609,19.586,21.99999011]
[1693774260862,55.0,19.609,19.587,55.0]
[1693774261061,55.0,19.609,19.588,1.99999011]
[1693774261265,95.5354,19.608,19.588,1.99999011]
[1693774261467,55.0,19.607,19.588,1.99999011]
[1693774261665,95.5354,19.608,19.588,1.99999011]
[1693774261962,95.5354,19.608,19.588,13.80953011]
[1693774262158,636.01,19.61,19.589,55.0]
[1693774262469,55.0,19.609,19.59,1.99999011]
[1693774262960,55.0,19.609,19.588,55.0]
[1693774262961,62.955,19.609,19.588,55.0]
[1693774263167,62.955,19.609,19.582,25.65171353]
[1693774263168,7.956,19.607,19.584,1.99999011]
[1693774263356,55.0,19.606,19.584,21.99999011]
[1693774264148,62.956,19.606,19.584,21.99999011]
[1693774264349,62.956,19.606,19.586,1.99999011]
[1693774264549,62.956,19.606,19.586,21.99999011]
[1693774264753,62.956,19.606,19.588,1.99999011]
[1693774265249,55.0,19.606,19.588,1.99999011]
[1693774265453,7.956,19.606,19.588,56.99999011]
[1693774265649,55.0,19.607,19.588,56.99999011]
[1693774265650,62.957,19.605,19.588,56.99999011]
[1693774265853,7.957,19.605,19.588,1.99999011]
[1693774266072,55.0,19.604,19.588,1.99999011]
[1693774266257,62.957,19.604,19.588,1.99999011]
[1693774266862,62.957,19.604,19.585,20.0]
[1693774267067,37.21,19.6,19.58,25.65171353]
[1693774267366,37.21,19.6,19.573,100.88232852]
[1693774267367,7.961,19.594,19.574,1.99999011]
[1693774267571,80.716,19.599,19.574,1.99999011]
[1693774267572,146.2859,19.599,19.58,37.21]
[1693774267754,154.2449,19.599,19.581,1.99999011]
[1693774269969,154.2449,19.599,19.581,56.99999011]
[1693774270959,18.76607534,19.604,19.581,56.99999011]
[1693774271257,401.4,19.616,19.591,1.99999011]
[1693774271863,401.4,19.616,19.593,1.99999011]
[1693774272056,409.352,19.616,19.593,1.99999011]
[1693774272461,401.4,19.616,19.593,76.99999011]
[1693774272662,7.953,19.615,19.593,56.99999011]
[1693774272967,37.21,19.61,19.593,130.0]
[1693774273277,401.4,19.616,19.6,37.21]
[1693774273466,7.953,19.615,19.593,130.0]
[1693774273659,20.0,19.614,19.594,27.65170364]
[1693774273967,20.0,19.614,19.583,1.99999011]
[1693774273968,7.955,19.609,19.583,1.99999011]
[1693774274171,7.955,19.609,19.585,1.99999011]
[1693774274770,55.0,19.608,19.585,1.99999011]
[1693774274974,7.957,19.605,19.585,136.75809011]
[1693774275164,55.0,19.608,19.585,136.75809011]
[1693774275360,114.7581,19.614,19.59,37.21]
[1693774275559,55.0,19.613,19.591,1.99999011]
[1693774275858,20.0,19.612,19.591,1.99999011]
[1693774276167,62.955,19.611,19.591,1.99999011]
[1693774276374,45.165,19.61,19.586,1.99999011]
[1693774276674,55.0,19.609,19.587,25.65171353]
[1693774276875,55.0,19.609,19.588,1.99999011]
[1693774277673,62.955,19.609,19.588,1.99999011]
[1693774277874,62.955,19.609,19.588,56.99999011]
[1693774278672,61.955,19.609,19.588,56.99999011]
[1693774279077,37.21,19.61,19.588,56.99999011]
[1693774279265,7.955,19.609,19.588,94.46124364]
[1693774280080,7.955,19.609,19.588,68.80953011]
[1693774280275,20.0,19.612,19.588,56.99999011]
[1693774280579,7.954,19.612,19.59,2.99999011]
[1693774280771,7.955,19.61,19.59,57.99999011]
[1693774281169,102.7111,19.614,19.59,57.99999011]
[1693774281362,94.7581,19.614,19.592,2.99999011]
[1693774281567,26.65074828,19.615,19.592,57.99999011]
[1693774281773,98.6577,19.613,19.593,20.0]
[1693774282078,98.6577,19.613,19.592,2.99999011]
[1693774282667,98.6577,19.613,19.592,40.20999011]
[1693774282876,98.6577,19.613,19.594,2.99999011]
[1693774283070,401.4,19.616,19.594,2.99999011]
[1693774283270,18.49381266,19.623,19.6,62.0]
[1693774283572,98.6577,19.629,19.601,57.99999011]
[1693774283773,26.63618687,19.624,19.601,57.99999011]
[1693774283979,26.63618687,19.624,19.602,20.0]
[1693774284170,26.63618687,19.624,19.601,57.99999011]
[1693774284171,26.63618687,19.624,19.603,57.99999011]
[1693774284478,124.0,19.63,19.605,2.99999011]
[1693774284479,62.0,19.63,19.605,2.99999011]
[1693774284677,401.4,19.632,19.605,22.99999011]
[1693774284882,401.4,19.632,19.61,62.0]
[1693774285086,401.4,19.632,19.606,28.65170364]
[1693774285273,62.0,19.63,19.606,49.18829141]
[1693774285468,62.0,19.62,19.606,2.99999011]
[1693774285679,62.0,19.62,19.591,10.80691775]
[1693774285680,62.0,19.62,19.6,2.99999011]
[1693774285972,20.0,19.619,19.595,2.99999011]
[1693774286180,62.0,19.61,19.595,2.99999011]
[1693774286478,62.0,19.61,19.59,2.99999011]
[1693774286684,22.78116328,19.618,19.59,2.99999011]
[1693774286984,62.0,19.61,19.59,28.65170364]
[1693774287281,62.0,19.61,19.59,2.99999011]
[1693774287486,62.0,19.61,19.592,2.99999011]
[1693774288477,124.0,19.61,19.592,2.99999011]
[1693774288677,131.955,19.61,19.591,2.99999011]
[1693774288983,131.955,19.61,19.591,22.99999011]
[1693774289285,62.0,19.6,19.591,2.99999011]
[1693774289483,62.0,19.6,19.59,41.489036]
[1693774289897,62.0,19.6,19.58,25.65171353]
[1693774290186,62.0,19.6,19.581,22.99999011]
[1693774290488,90.3237,19.599,19.581,48.65170364]
[1693774290791,90.3237,19.599,19.582,11.81316]
[1693774290988,90.3237,19.599,19.583,22.99999011]
[1693774291874,84.78116328,19.61,19.583,22.99999011]
[1693774291875,124.0,19.61,19.585,2.99999011]
[1693774292072,124.0,19.61,19.585,22.99999011]
[1693774292073,62.0,19.61,19.585,22.99999011]
[1693774292271,90.3237,19.609,19.587,2.99999011]
[1693774292474,90.3237,19.609,19.588,25.65171353]
[1693774292686,90.3237,19.609,19.59,2.99999011]
[1693774293575,90.3237,19.609,19.584,22.99999011]
[1693774293887,90.3237,19.609,19.586,2.99999011]
[1693774294106,90.3237,19.609,19.588,2.99999011]
[1693774294284,62.0,19.6,19.587,11.81014]
[1693774294488,124.0,19.6,19.587,11.81014]
[1693774294887,93.3401,19.599,19.58,2.99999011]
[1693774295076,93.3401,19.599,19.581,11.81376]
[1693774295280,93.3401,19.599,19.582,2.99999011]
[1693774295789,93.3401,19.599,19.583,11.81255]
[1693774296090,93.3401,19.599,19.584,2.99999011]
[1693774296388,93.3401,19.599,19.584,57.99999011]
[1693774296584,93.3401,19.599,19.584,2.99999011]
[1693774297791,101.2991,19.599,19.584,2.99999011]
[1693774297987,62.0,19.59,19.584,2.99999011]
[1693774298196,93.3401,19.599,19.579,41.225115]
[1693774298390,93.3401,19.599,19.58,60.46606364]
[1693774298583,93.3401,19.599,19.581,11.81376]
[1693774298892,93.3401,19.599,19.582,22.99999011]
[1693774299480,93.3401,19.599,19.583,55.0]
[1693774299681,93.3401,19.599,19.584,14.81194011]
[1693774299882,93.3401,19.599,19.585,55.0]
[1693774300082,93.3401,19.599,19.586,2.99999011]
[1693774301398,93.3401,19.599,19.584,11.81195]
[1693774301613,93.3401,19.599,19.585,2.99999011]
[1693774301896,93.3401,19.599,19.584,11.81195]
[1693774302097,93.3401,19.599,19.585,2.99999011]